[Event "55th Biel Festival MTO 2022"]
[Site "Biel"]
[Date "2022.07.15"]
[Round "3.20"]
[White "Alekseenko Kirill"]
[Black "Marentini, Marcel"]
[Result "1-0"]
[ECO "C42"]
[WhiteElo "2708"]
[BlackElo "2053"]
[Annotator "ChessBase"]
[PlyCount "91"]
[EventDate "2022.07.13"]
[EventType "swiss"]
[EventCountry "SUI"]
[SourceTitle "playchess.com"]
[Source "ChessBase"]
[SourceQuality "1"]
[TimeControl "40/5400+30:1800+30"]

1. e4 {[%emt 0:00:14]} e5 {[%emt 0:00:14]} 2. Nf3 {[%emt 0:00:28]} Nf6 {[%emt 0:00:35]} 3. Nxe5 {[%emt 0:00:56]} d6 {[%emt 0:00:13]} 4. Nf3 {[%emt 0:00:08]} Nxe4 {[%emt 0:00:19]} 5. Nc3 {[%emt 0:01:13]} Nxc3 {[%emt 0:00:34]} 6. dxc3 {[%emt 0:00:07]} Be7 {[%emt 0:00:24]} 7. Be3 {[%emt 0:01:12]} Nc6 {[%emt 0:00:13]} 8. Bd3 {[%emt 0:00:58]} Be6 {[%emt 0:00:46]} 9. Qe2 {[%emt 0:00:42]} Qd7 {[%emt 0:02:25]} 10. O-O-O {[%emt 0:01:28]} O-O {[%emt 0:00:51]} 11. Kb1 {[%emt 0:02:51]} Rae8 {[%emt 0:01:18]} 12. h3 {[%emt 0:10:10]} Bf5 {[%emt 0:02:03]} 13. Bb5 {[%emt 0:02:17]} a6 {[%emt 0:05:00]} 14. Ne5 {[%emt 0:04:01]} Qc8 {[%emt 0:18:18]} 15. Nxc6 {[%emt 0:09:31]} axb5 {[%emt 0:01:59]} 16. Nxe7+ {[%emt 0:01:26]} Rxe7 {[%emt 0:00:09]} 17. Qxb5 {[%emt 0:00:32]} Be4 {[%emt 0:05:25]} 18. Qg5 {[%emt 0:06:11]} Re6 {[%emt 0:04:16]} 19. Qg4 {[%emt 0:07:47]} Qe8 {[%emt 0:01:06]} 20. Rhe1 {[%emt 0:08:21]} f5 {[%emt 0:14:05]} 21. Qf4 {[%emt 0:04:33]} Bxg2 {[%emt 0:13:28]} 22. Rg1 {[%emt 0:01:03]} Be4 {[%emt 0:01:59]} 23. Bd4 {[%emt 0:03:07]} Rf7 {[%emt 0:03:05]} 24. f3 {[%emt 0:01:40]} Bc6 {[%emt 0:03:27]} 25. c4 {[%emt 0:01:03]} b6 {[%emt 0:00:46]} 26. b3 {[%emt 0:02:03]} Qa8 {[%emt 0:04:20]} 27. Rg3 {[%emt 0:02:16]} Qe8 {[%emt 0:00:55]} 28. Kb2 {[%emt 0:01:15]} Rg6 {[%emt 0:04:20]} 29. Rxg6 {[%emt 0:05:28]} hxg6 {[%emt 0:00:09]} 30. Rg1 {[%emt 0:00:06]} Re7 {[%emt 0:04:18]} 31. h4 {[%emt 0:00:26]} Re1 {[%emt 0:00:36]} 32. Rg5 {[%emt 0:05:45]} Rh1 {[%emt 0:04:01]} 33. Bc3 {[%emt 0:02:21]} Qf7 {[%emt 0:01:16]} 34. Rg2 {[%emt 0:05:02]} Rh3 {[%emt 0:01:13]} 35. Rf2 {[%emt 0:05:41]} Qe7 {[%emt 0:00:16]} 36. h5 {[%emt 0:00:03]} Rxh5 {[%emt 0:00:24]} 37. Qd2 {[%emt 0:00:08]} Qg5 {[%emt 0:01:27]} 38. Qe1 {[%emt 0:02:29]} Kf7 {[%emt 0:01:54]} 39. a4 {[%emt 0:02:49]} Rh8 {[%emt 0:00:09]} 40. Qd1 {[%emt 0:02:05]} Re8 {[%emt 0:00:52]} 41. f4 {[%emt 0:04:17]} Qh4 {[%emt 0:03:17]} 42. Qd4 {[%emt 0:05:08]} Qh6 {[%emt 0:03:30]} 43. a5 {[%emt 0:01:33]} Re4 {[%emt 0:02:16]} 44. Qd2 {[%emt 0:00:07]} bxa5 {[%emt 0:00:34]} 45. Bxa5 {[%emt 0:01:13]} Re7 {[%emt 0:00:10]} 46. Rh2 {[%emt 0:00:28]} 1-0

[Event "55th Biel Festival MTO 2022"]
[Site "Biel"]
[Date "2022.07.15"]
[Round "3.21"]
[White "Martirosyan Haik M."]
[Black "Ermitsch Magnus"]
[Result "1-0"]
[ECO "D41"]
[WhiteElo "2672"]
[BlackElo "2234"]
[Annotator "ChessBase"]
[PlyCount "89"]
[EventDate "2022.07.13"]
[EventType "swiss"]
[EventCountry "SUI"]
[SourceTitle "playchess.com"]
[Source "ChessBase"]
[SourceQuality "1"]
[TimeControl "40/5400+30:1800+30"]

1. d4 {[%emt 0:00:05]} d5 {[%emt 0:00:21]} 2. c4 {[%emt 0:00:08]} e6 {[%emt 0:00:05]} 3. Nf3 {[%emt 0:00:11]} Nf6 {[%emt 0:00:11]} 4. Nc3 {[%emt 0:00:09]} c5 {[%emt 0:00:11]} 5. cxd5 {[%emt 0:00:09]} Nxd5 {[%emt 0:00:08]} 6. e4 {[%emt 0:00:09]} Nxc3 {[%emt 0:00:06]} 7. bxc3 {[%emt 0:00:04]} cxd4 {[%emt 0:00:07]} 8. cxd4 {[%emt 0:00:04]} Bb4+ {[%emt 0:00:08]} 9. Bd2 {[%emt 0:00:06]} Bxd2+ {[%emt 0:00:11]} 10. Qxd2 {[%emt 0:00:05]} O-O {[%emt 0:00:10]} 11. Bc4 {[%emt 0:00:05]} Nd7 {[%emt 0:00:17]} 12. O-O {[%emt 0:00:07]} b6 {[%emt 0:00:04]} 13. Rad1 {[%emt 0:00:17]} Bb7 {[%emt 0:00:48]} 14. Rfe1 {[%emt 0:00:06]} Rc8 {[%emt 0:00:25]} 15. Bb3 {[%emt 0:00:06]} h6 {[%emt 0:00:33]} 16. Re3 {[%emt 0:03:09]} Nf6 {[%emt 0:01:41]} 17. Qe1 {[%emt 0:01:13]} Re8 {[%emt 0:09:56]} 18. h3 {[%emt 0:03:49]} b5 {[%emt 0:05:37]} 19. d5 {[%emt 0:03:20]} exd5 {[%emt 0:19:48]} 20. e5 {[%emt 0:00:48]} Nh5 {[%emt 0:07:06]} 21. Rd4 {[%emt 0:06:44]} g5 {[%emt 0:06:25]} 22. h4 {[%emt 0:05:34]} Re6 {[%emt 0:07:52]} 23. hxg5 {[%emt 0:00:33]} hxg5 {[%emt 0:00:35]} 24. Rg4 {[%emt 0:00:50]} Rg6 {[%emt 0:00:46]} 25. e6 {[%emt 0:00:07]} fxe6 {[%emt 0:00:46]} 26. Rxe6 {[%emt 0:00:22]} Rg7 {[%emt 0:00:53]} 27. Re5 {[%emt 0:02:44]} Qf6 {[%emt 0:10:26]} 28. Nxg5 {[%emt 0:05:12]} Rf8 {[%emt 0:04:19]} 29. Nh7 {[%emt 0:03:48]} Kxh7 {[%emt 0:00:54]} 30. Rxh5+ {[%emt 0:00:12]} Kg8 {[%emt 0:00:01]} 31. Bxd5+ {[%emt 0:00:42]} Bxd5 {[%emt 0:00:34]} 32. Rxg7+ {[%emt 0:00:04]} Kxg7 {[%emt 0:02:28]} 33. Rxd5 {[%emt 0:00:07]} Rf7 {[%emt 0:00:42]} 34. Rxb5 {[%emt 0:00:49]} Re7 {[%emt 0:00:38]} 35. Qc1 {[%emt 0:00:14]} Re2 {[%emt 0:02:52]} 36. Qg5+ {[%emt 0:00:22]} Qxg5 {[%emt 0:00:08]} 37. Rxg5+ {[%emt 0:00:05]} Kf6 {[%emt 0:00:07]} 38. Ra5 {[%emt 0:00:03]} Re7 {[%emt 0:00:08]} 39. Kh2 {[%emt 0:01:14]} Rg7 {[%emt 0:00:21]} 40. f3 {[%emt 0:00:17]} Ke6 {[%emt 0:00:30]} 41. g4 {[%emt 0:30:06]} Kd6 {[%emt 0:30:25]} 42. Kg3 {[%emt 0:00:16]} Kc6 {[%emt 0:00:02]} 43. g5 {[%emt 0:00:15]} Kb6 {[%emt 0:00:05]} 44. Re5 {[%emt 0:00:07]} a5 {[%emt 0:00:19]} 45. a4 {[%emt 0:00:15]} 1-0

[Event "55th Biel Festival MTO 2022"]
[Site "Biel"]
[Date "2022.07.15"]
[Round "3.22"]
[White "Raja Harshit"]
[Black "Mamedov Edgar"]
[Result "1-0"]
[ECO "B12"]
[WhiteElo "2477"]
[BlackElo "2227"]
[Annotator "ChessBase"]
[PlyCount "87"]
[EventDate "2022.07.13"]
[EventType "swiss"]
[EventCountry "SUI"]
[SourceTitle "playchess.com"]
[Source "ChessBase"]
[SourceQuality "1"]
[TimeControl "40/5400+30:1800+30"]

1. e4 {[%emt 0:01:10]} c6 {[%emt 0:00:18]} 2. d4 {[%emt 0:00:12]} d5 {[%emt 0:00:10]} 3. f3 {[%emt 0:00:07]} dxe4 {[%emt 0:01:06]} 4. fxe4 {[%emt 0:00:12]} e5 {[%emt 0:00:12]} 5. Nf3 {[%emt 0:00:08]} Be6 {[%emt 0:00:30]} 6. c3 {[%emt 0:09:08]} Nd7 {[%emt 0:00:25]} 7. Nbd2 {[%emt 0:02:18]} Ngf6 {[%emt 0:06:17]} 8. Be2 {[%emt 0:10:12]} Bd6 {[%emt 0:05:54]} 9. Ng5 {[%emt 0:07:28]} O-O {[%emt 0:10:11]} 10. Nxe6 {[%emt 0:06:53]} fxe6 {[%emt 0:00:07]} 11. Qb3 {[%emt 0:02:09]} Qe7 {[%emt 0:02:22]} 12. O-O {[%emt 0:00:58]} b5 {[%emt 0:02:46]} 13. a4 {[%emt 0:03:09]} a6 {[%emt 0:01:19]} 14. Nf3 {[%emt 0:13:27]} Nxe4 {[%emt 0:19:46]} 15. Bd3 {[%emt 0:01:44]} Nef6 {[%emt 0:02:58]} 16. Bg5 {[%emt 0:05:14]} exd4 {[%emt 0:25:58]} 17. cxd4 {[%emt 0:00:24]} Qe8 {[%emt 0:03:41]} 18. axb5 {[%emt 0:04:31]} cxb5 {[%emt 0:00:08]} 19. Bxb5 {[%emt 0:01:45]} axb5 {[%emt 0:01:47]} 20. Rxa8 {[%emt 0:00:32]} Bxh2+ {[%emt 0:02:57]} 21. Kxh2 {[%emt 0:02:56]} Qxa8 {[%emt 0:02:31]} 22. Qxe6+ {[%emt 0:00:17]} Kh8 {[%emt 0:00:13]} 23. Bxf6 {[%emt 0:01:05]} Nxf6 {[%emt 0:00:19]} 24. Rc1 {[%emt 0:00:48]} Re8 {[%emt 0:02:35]} 25. Qf5 {[%emt 0:01:48]} Qb8+ {[%emt 0:01:25]} 26. Kg1 {[%emt 0:00:31]} b4 {[%emt 0:02:32]} 27. Rc6 {[%emt 0:01:55]} Qd8 {[%emt 0:01:56]} 28. Qc5 {[%emt 0:04:43]} Qd5 {[%emt 0:01:29]} 29. Rc8 {[%emt 0:04:36]} Rxc8 {[%emt 0:00:12]} 30. Qxc8+ {[%emt 0:00:04]} Qg8 {[%emt 0:00:06]} 31. Qb7 {[%emt 0:01:27]} Qc4 {[%emt 0:01:21]} 32. Qa8+ {[%emt 0:02:55]} Qg8 {[%emt 0:00:21]} 33. Qa7 {[%emt 0:01:51]} Qb3 {[%emt 0:00:41]} 34. Qa8+ {[%emt 0:01:43]} Qg8 {[%emt 0:00:05]} 35. Qc6 {[%emt 0:00:03]} Qd5 {[%emt 0:00:47]} 36. Qc8+ {[%emt 0:01:40]} Qg8 {[%emt 0:00:13]} 37. Qc5 {[%emt 0:00:03]} Qb3 {[%emt 0:01:02]} 38. Qf8+ {[%emt 0:01:02]} Ng8 {[%emt 0:00:09]} 39. Ne5 {[%emt 0:01:30]} Qe3+ {[%emt 0:00:27]} 40. Kh2 {[%emt 0:00:56]} Qh6+ {[%emt 0:00:19]} 41. Kg3 {[%emt 0:31:33]} Qe3+ {[%emt 0:30:16]} 42. Nf3 {[%emt 0:00:00]} Qb3 {[%emt 0:00:00]} 43. Kh2 {[%emt 0:00:00]} Qxb2 {[%emt 0:00:00]} 44. Ng5 {[%emt 0:00:00]} 1-0

[Event "55th Biel Festival MTO 2022"]
[Site "Biel"]
[Date "2022.07.15"]
[Round "3.23"]
[White "Kamber Bruno"]
[Black "Licznerski Lukasz"]
[Result "0-1"]
[ECO "B10"]
[WhiteElo "2225"]
[BlackElo "2451"]
[Annotator "ChessBase"]
[PlyCount "68"]
[EventDate "2022.07.13"]
[EventType "swiss"]
[EventCountry "SUI"]
[SourceTitle "playchess.com"]
[Source "ChessBase"]
[SourceQuality "1"]
[TimeControl "40/5400+30:1800+30"]

1. e4 {[%emt 0:00:38]} c6 {[%emt 0:11:17]} 2. Nf3 {[%emt 0:02:32]} d5 {[%emt 0:00:02]} 3. exd5 {[%emt 0:01:25]} cxd5 {[%emt 0:00:02]} 4. Ne5 {[%emt 0:00:39]} Nc6 {[%emt 0:02:19]} 5. Bb5 {[%emt 0:03:32]} Bd7 {[%emt 0:00:18]} 6. Nxd7 {[%emt 0:00:35]} Qxd7 {[%emt 0:00:01]} 7. d4 {[%emt 0:00:25]} a6 {[%emt 0:00:51]} 8. Be2 {[%emt 0:00:23]} e6 {[%emt 0:00:02]} 9. O-O {[%emt 0:00:15]} Bd6 {[%emt 0:00:01]} 10. c3 {[%emt 0:03:00]} Qc7 {[%emt 0:00:38]} 11. g3 {[%emt 0:04:19]} Nf6 {[%emt 0:10:21]} 12. Nd2 {[%emt 0:02:34]} b5 {[%emt 0:11:39]} 13. b4 {[%emt 0:16:36]} e5 {[%emt 0:01:57]} 14. a4 {[%emt 0:02:14]} Rb8 {[%emt 0:01:08]} 15. axb5 {[%emt 0:02:59]} axb5 {[%emt 0:00:03]} 16. dxe5 {[%emt 0:00:55]} Nxe5 {[%emt 0:02:31]} 17. Qb3 {[%emt 0:03:12]} O-O {[%emt 0:00:31]} 18. Ra5 {[%emt 0:01:33]} d4 {[%emt 0:19:18]} 19. Rxb5 {[%emt 0:20:10]} d3 {[%emt 0:09:22]} 20. Rxb8 {[%emt 0:01:21]} dxe2 {[%emt 0:00:05]} 21. Rxf8+ {[%emt 0:00:19]} Kxf8 {[%emt 0:00:18]} 22. Re1 {[%emt 0:05:51]} Nd3 {[%emt 0:03:03]} 23. Nf3 {[%emt 0:00:10]} Qc6 {[%emt 0:00:32]} 24. Qc2 {[%emt 0:00:58]} Qxf3 {[%emt 0:00:43]} 25. Rxe2 {[%emt 0:00:08]} Nxc1 {[%emt 0:00:49]} 26. Re3 {[%emt 0:00:10]} Qh5 {[%emt 0:02:26]} 27. h4 {[%emt 0:00:34]} Nd5 {[%emt 0:05:12]} 28. Re1 {[%emt 0:14:03]} Nxc3 {[%emt 0:01:11]} 29. Qd2 {[%emt 0:01:56]} N1e2+ {[%emt 0:02:26]} 30. Kf1 {[%emt 0:00:28]} Be7 {[%emt 0:01:23]} 31. Qd7 {[%emt 0:02:19]} g6 {[%emt 0:00:34]} 32. Ra1 {[%emt 0:02:18]} Qf3 {[%emt 0:00:15]} 33. Qc8+ {[%emt 0:06:22]} Kg7 {[%emt 0:00:02]} 34. Qh3 {[%emt 0:01:59]} Ne4 {[%emt 0:00:16]} 0-1

[Event "55th Biel Festival MTO 2022"]
[Site "Biel"]
[Date "2022.07.15"]
[Round "3.24"]
[White "Mohammad Nubairshah Shaikh"]
[Black "Kittler Thorsten"]
[Result "1-0"]
[ECO "A33"]
[WhiteElo "2445"]
[BlackElo "2226"]
[Annotator "ChessBase"]
[PlyCount "77"]
[EventDate "2022.07.13"]
[EventType "swiss"]
[EventCountry "SUI"]
[SourceTitle "playchess.com"]
[Source "ChessBase"]
[SourceQuality "1"]
[TimeControl "40/5400+30:1800+30"]

1. Nf3 {[%emt 0:10:06]} c5 {[%emt 0:00:24]} 2. g3 {[%emt 0:00:15]} Nf6 {[%emt 0:00:09]} 3. Bg2 {[%emt 0:00:03]} Nc6 {[%emt 0:00:22]} 4. O-O {[%emt 0:00:08]} e6 {[%emt 0:00:03]} 5. c4 {[%emt 0:01:07]} Be7 {[%emt 0:04:01]} 6. d4 {[%emt 0:00:37]} cxd4 {[%emt 0:03:16]} 7. Nxd4 {[%emt 0:00:03]} Nxd4 {[%emt 0:00:09]} 8. Qxd4 {[%emt 0:00:03]} O-O {[%emt 0:00:09]} 9. Nc3 {[%emt 0:00:38]} d6 {[%emt 0:06:07]} 10. b3 {[%emt 0:05:28]} a6 {[%emt 0:04:39]} 11. Rd1 {[%emt 0:00:27]} Qc7 {[%emt 0:00:51]} 12. Na4 {[%emt 0:06:23]} Rd8 {[%emt 0:03:03]} 13. Qb6 {[%emt 0:02:47]} Qxb6 {[%emt 0:03:54]} 14. Nxb6 {[%emt 0:00:02]} Rb8 {[%emt 0:00:02]} 15. c5 {[%emt 0:10:43]} Ne8 {[%emt 0:47:05]} 16. Bf4 {[%emt 0:04:49]} Bf6 {[%emt 0:04:40]} 17. cxd6 {[%emt 0:05:49]} Bxa1 {[%emt 0:00:08]} 18. d7 {[%emt 0:00:11]} e5 {[%emt 0:00:52]} 19. Rxa1 {[%emt 0:00:50]} Bxd7 {[%emt 0:12:07]} 20. Bxe5 {[%emt 0:01:37]} Bc6 {[%emt 0:01:25]} 21. Bxb8 {[%emt 0:04:11]} Bxg2 {[%emt 0:00:15]} 22. Kxg2 {[%emt 0:00:10]} Rxb8 {[%emt 0:00:07]} 23. Rd1 {[%emt 0:00:03]} Nf6 {[%emt 0:00:07]} 24. f3 {[%emt 0:00:03]} Re8 {[%emt 0:00:22]} 25. e4 {[%emt 0:00:08]} g6 {[%emt 0:01:54]} 26. Rd6 {[%emt 0:01:23]} Kg7 {[%emt 0:00:05]} 27. h4 {[%emt 0:01:54]} h6 {[%emt 0:00:41]} 28. g4 {[%emt 0:01:26]} g5 {[%emt 0:02:42]} 29. h5 {[%emt 0:00:11]} Re7 {[%emt 0:00:29]} 30. Rxf6 {[%emt 0:02:45]} Kxf6 {[%emt 0:01:31]} 31. Nd5+ {[%emt 0:00:01]} Ke6 {[%emt 0:00:02]} 32. Nxe7 {[%emt 0:00:09]} Kxe7 {[%emt 0:00:02]} 33. f4 {[%emt 0:00:07]} f6 {[%emt 0:00:57]} 34. Kf3 {[%emt 0:00:57]} Ke6 {[%emt 0:01:20]} 35. b4 {[%emt 0:00:09]} b6 {[%emt 0:01:07]} 36. a4 {[%emt 0:00:26]} a5 {[%emt 0:00:12]} 37. b5 {[%emt 0:00:14]} Kd6 {[%emt 0:00:22]} 38. e5+ {[%emt 0:00:02]} Ke6 {[%emt 0:00:59]} 39. fxg5 {[%emt 0:00:07]} 1-0

[Event "55th Biel Festival MTO 2022"]
[Site "Biel"]
[Date "2022.07.15"]
[Round "3.25"]
[White "Asllani Dorian"]
[Black "Gurel Ediz"]
[Result "0-1"]
[ECO "A41"]
[WhiteElo "2220"]
[BlackElo "2435"]
[Annotator "ChessBase"]
[PlyCount "74"]
[EventDate "2022.07.13"]
[EventType "swiss"]
[EventCountry "SUI"]
[SourceTitle "playchess.com"]
[Source "ChessBase"]
[SourceQuality "1"]
[TimeControl "40/5400+30:1800+30"]

1. d4 {[%emt 0:00:04]} d6 {[%emt 0:00:21]} 2. c4 {[%emt 0:00:20]} e5 {[%emt 0:00:10]} 3. d5 {[%emt 0:01:02]} f5 {[%emt 0:00:27]} 4. Nc3 {[%emt 0:01:46]} Nf6 {[%emt 0:00:06]} 5. Bg5 {[%emt 0:06:41]} Be7 {[%emt 0:00:42]} 6. Bxf6 {[%emt 0:00:47]} Bxf6 {[%emt 0:00:04]} 7. e4 {[%emt 0:00:17]} O-O {[%emt 0:01:24]} 8. Bd3 {[%emt 0:01:41]} Na6 {[%emt 0:12:09]} 9. a3 {[%emt 0:08:56]} Nc5 {[%emt 0:04:59]} 10. Bc2 {[%emt 0:00:31]} a5 {[%emt 0:03:45]} 11. b4 {[%emt 0:10:40]} Na6 {[%emt 0:04:46]} 12. Qb1 {[%emt 0:03:07]} f4 {[%emt 0:06:29]} 13. h3 {[%emt 0:06:59]} Qe8 {[%emt 0:05:11]} 14. Bd1 {[%emt 0:01:59]} h5 {[%emt 0:14:13]} 15. Bf3 {[%emt 0:02:45]} Bd7 {[%emt 0:01:15]} 16. b5 {[%emt 0:11:15]} Nc5 {[%emt 0:00:05]} 17. Qd1 {[%emt 0:00:07]} g6 {[%emt 0:03:05]} 18. Na4 {[%emt 0:00:33]} Nxa4 {[%emt 0:04:13]} 19. Qxa4 {[%emt 0:00:07]} c6 {[%emt 0:08:29]} 20. dxc6 {[%emt 0:15:32]} bxc6 {[%emt 0:00:05]} 21. b6 {[%emt 0:00:10]} d5 {[%emt 0:04:52]} 22. c5 {[%emt 0:02:32]} Kg7 {[%emt 0:01:02]} 23. Rb1 {[%emt 0:06:32]} g5 {[%emt 0:08:15]} 24. Qd1 {[%emt 0:00:51]} Rh8 {[%emt 0:00:10]} 25. Kf1 {[%emt 0:00:35]} Rd8 {[%emt 0:04:15]} 26. b7 {[%emt 0:03:10]} Rb8 {[%emt 0:01:14]} 27. exd5 {[%emt 0:02:00]} e4 {[%emt 0:00:07]} 28. Be2 {[%emt 0:00:08]} cxd5 {[%emt 0:00:09]} 29. Qxd5 {[%emt 0:01:17]} Bc6 {[%emt 0:00:11]} 30. Qf5 {[%emt 0:03:09]} Rf8 {[%emt 0:01:25]} 31. h4 {[%emt 0:05:20]} g4 {[%emt 0:01:36]} 32. Bxg4 {[%emt 0:02:40]} hxg4 {[%emt 0:00:14]} 33. h5 {[%emt 0:00:21]} Bb5+ {[%emt 0:01:10]} 34. Ne2 {[%emt 0:00:29]} f3 {[%emt 0:00:09]} 35. gxf3 {[%emt 0:03:06]} exf3 {[%emt 0:00:26]} 36. Qxg4+ {[%emt 0:00:30]} Kh8 {[%emt 0:00:06]} 37. Qxf3 {[%emt 0:00:29]} Bd4 {[%emt 0:00:15]} 0-1

[Event "55th Biel Festival MTO 2022"]
[Site "Biel"]
[Date "2022.07.15"]
[Round "3.26"]
[White "Krishna C R G"]
[Black "Mahitosh Dey"]
[Result "1/2-1/2"]
[ECO "A49"]
[WhiteElo "2430"]
[BlackElo "2212"]
[Annotator "ChessBase"]
[PlyCount "25"]
[EventDate "2022.07.13"]
[EventType "swiss"]
[EventCountry "SUI"]
[SourceTitle "playchess.com"]
[Source "ChessBase"]
[SourceQuality "1"]
[TimeControl "40/5400+30:1800+30"]

1. d4 {[%emt 0:00:03]} Nf6 {[%emt 0:00:06]} 2. Nf3 {[%emt 0:00:18]} g6 {[%emt 0:00:06]} 3. g3 {[%emt 0:02:12]} Bg7 {[%emt 0:00:32]} 4. Bg2 {[%emt 0:00:03]} O-O {[%emt 0:00:07]} 5. O-O {[%emt 0:00:10]} d6 {[%emt 0:00:06]} 6. a4 {[%emt 0:00:10]} Nc6 {[%emt 0:00:09]} 7. Nc3 {[%emt 0:00:26]} e5 {[%emt 0:00:13]} 8. dxe5 {[%emt 0:10:12]} dxe5 {[%emt 0:00:19]} 9. Be3 {[%emt 0:00:11]} Bf5 {[%emt 0:01:36]} 10. Qc1 {[%emt 0:01:35]} Qe7 {[%emt 0:01:54]} 11. h3 {[%emt 0:04:07]} Nb4 {[%emt 0:04:50]} 12. g4 {[%emt 0:15:05]} Bd7 {[%emt 0:02:24]} 13. Bg5 {[%emt 0:29:19]} 1/2-1/2

[Event "55th Biel Festival MTO 2022"]
[Site "Biel"]
[Date "2022.07.15"]
[Round "3.27"]
[White "Hilby Craig"]
[Black "Li Dominique"]
[Result "1/2-1/2"]
[ECO "A11"]
[WhiteElo "2422"]
[BlackElo "2212"]
[Annotator "ChessBase"]
[PlyCount "56"]
[EventDate "2022.07.13"]
[EventType "swiss"]
[EventCountry "SUI"]
[SourceTitle "playchess.com"]
[Source "ChessBase"]
[SourceQuality "1"]
[TimeControl "40/5400+30:1800+30"]

1. Nf3 {[%emt 0:05:02]} d5 {[%emt 0:00:12]} 2. e3 {[%emt 0:00:04]} Nf6 {[%emt 0:03:10]} 3. c4 {[%emt 0:00:31]} c6 {[%emt 0:01:28]} 4. Nc3 {[%emt 0:00:00]} e6 {[%emt 0:00:22]} 5. b3 {[%emt 0:00:00]} Bd6 {[%emt 0:00:44]} 6. Bb2 {[%emt 0:00:00]} e5 {[%emt 0:03:02]} 7. cxd5 {[%emt 0:00:37]} cxd5 {[%emt 0:00:36]} 8. Nb5 {[%emt 0:00:24]} Nc6 {[%emt 0:02:49]} 9. Nxd6+ {[%emt 0:04:30]} Qxd6 {[%emt 0:00:06]} 10. Qc1 {[%emt 0:00:29]} Bg4 {[%emt 0:08:19]} 11. Bb5 {[%emt 0:02:03]} Nd7 {[%emt 0:06:02]} 12. Ba3 {[%emt 0:13:35]} Qf6 {[%emt 0:00:34]} 13. Bxc6 {[%emt 0:02:45]} Qxc6 {[%emt 0:09:31]} 14. Qb2 {[%emt 0:07:24]} f6 {[%emt 0:02:16]} 15. O-O {[%emt 0:05:09]} Bxf3 {[%emt 0:06:26]} 16. Rfc1 {[%emt 0:03:40]} Qe6 {[%emt 0:06:23]} 17. gxf3 {[%emt 0:00:10]} e4 {[%emt 0:10:01]} 18. Rc7 {[%emt 0:01:42]} Qh3 {[%emt 0:04:22]} 19. fxe4 {[%emt 0:03:24]} h5 {[%emt 0:05:24]} 20. Qc2 {[%emt 0:11:30]} Rh6 {[%emt 0:00:42]} 21. exd5 {[%emt 0:00:13]} Kf7 {[%emt 0:02:37]} 22. Bd6 {[%emt 0:04:29]} Rg6+ {[%emt 0:05:20]} 23. Bg3 {[%emt 0:00:04]} h4 {[%emt 0:01:29]} 24. d6 {[%emt 0:01:49]} hxg3 {[%emt 0:02:15]} 25. fxg3 {[%emt 0:02:26]} Rd8 {[%emt 0:08:15]} 26. Qc4+ {[%emt 0:01:56]} Kf8 {[%emt 0:03:24]} 27. Rf1 {[%emt 0:07:39]} Rxg3+ {[%emt 0:04:25]} 28. hxg3 {[%emt 0:00:07]} Qxg3+ {[%emt 0:00:10]} 1/2-1/2

[Event "55th Biel Festival MTO 2022"]
[Site "Biel"]
[Date "2022.07.15"]
[Round "3.28"]
[White "Vasquez Toledo Cristian"]
[Black "Korley Kassa"]
[Result "1/2-1/2"]
[ECO "D03"]
[WhiteElo "2206"]
[BlackElo "2421"]
[Annotator "ChessBase"]
[PlyCount "71"]
[EventDate "2022.07.13"]
[EventType "swiss"]
[EventCountry "SUI"]
[SourceTitle "playchess.com"]
[Source "ChessBase"]
[SourceQuality "1"]
[TimeControl "40/5400+30:1800+30"]

1. d4 {[%emt 0:08:59]} d5 {[%emt 0:00:05]} 2. Nf3 {[%emt 0:00:06]} e6 {[%emt 0:00:16]} 3. Bf4 {[%emt 0:00:38]} Nf6 {[%emt 0:00:19]} 4. Nbd2 {[%emt 0:00:25]} Bd6 {[%emt 0:00:08]} 5. Bg5 {[%emt 0:00:48]} Be7 {[%emt 0:02:26]} 6. e3 {[%emt 0:01:46]} Nbd7 {[%emt 0:00:54]} 7. Bd3 {[%emt 0:00:26]} h6 {[%emt 0:04:45]} 8. Bh4 {[%emt 0:01:31]} b6 {[%emt 0:00:21]} 9. Ne5 {[%emt 0:05:25]} Nxe5 {[%emt 0:00:12]} 10. dxe5 {[%emt 0:00:05]} Nd7 {[%emt 0:00:06]} 11. Bxe7 {[%emt 0:00:53]} Qxe7 {[%emt 0:00:18]} 12. Qg4 {[%emt 0:01:17]} Qg5 {[%emt 0:17:12]} 13. Qxg5 {[%emt 0:01:40]} hxg5 {[%emt 0:00:02]} 14. f4 {[%emt 0:13:45]} gxf4 {[%emt 0:00:15]} 15. exf4 {[%emt 0:00:05]} g5 {[%emt 0:00:15]} 16. fxg5 {[%emt 0:02:01]} Nxe5 {[%emt 0:00:04]} 17. Nf3 {[%emt 0:09:40]} Nxf3+ {[%emt 0:19:34]} 18. gxf3 {[%emt 0:00:10]} f6 {[%emt 0:00:21]} 19. Kf2 {[%emt 0:06:04]} fxg5 {[%emt 0:00:40]} 20. Rag1 {[%emt 0:00:09]} Ke7 {[%emt 0:00:43]} 21. Rxg5 {[%emt 0:00:09]} Bd7 {[%emt 0:00:09]} 22. h4 {[%emt 0:00:40]} Rh6 {[%emt 0:00:39]} 23. Rg7+ {[%emt 0:14:29]} Kd6 {[%emt 0:00:03]} 24. h5 {[%emt 0:00:13]} Rf8 {[%emt 0:03:24]} 25. Bg6 {[%emt 0:01:21]} e5 {[%emt 0:00:38]} 26. Kg3 {[%emt 0:02:56]} a5 {[%emt 0:05:10]} 27. Kh4 {[%emt 0:09:33]} Rxf3 {[%emt 0:00:55]} 28. Rg8 {[%emt 0:00:11]} Be6 {[%emt 0:02:27]} 29. Rb8 {[%emt 0:00:50]} Bf5 {[%emt 0:17:16]} 30. Kg5 {[%emt 0:00:11]} Bxg6 {[%emt 0:00:17]} 31. Kxh6 {[%emt 0:00:19]} Bxc2 {[%emt 0:00:06]} 32. Rd8+ {[%emt 0:06:15]} Ke6 {[%emt 0:00:24]} 33. Re8+ {[%emt 0:00:36]} Kd6 {[%emt 0:00:43]} 34. Rd8+ {[%emt 0:04:05]} Ke6 {[%emt 0:01:38]} 35. Re8+ {[%emt 0:00:02]} Kd6 {[%emt 0:00:00]} 36. Rd8+ {[%emt 0:09:40]} 1/2-1/2